bitfinex/quotes_ETHUSD_20240924
["timestamp","ask_amount","ask_price","bid_price","bid_amount"]
[1727200323064,3.76685,2654.8,2654.3,3.76746]
[1727200323352,3.76685,2654.8,2654.2,0.8132]
[1727200323353,3.76697,2654.7,2654.4,0.04795996]
[1727200323715,3.76697,2654.7,2654.2,4.58071]
[1727200323914,3.76697,2654.7,2654.3,0.04794168]
[1727200324140,3.76672,2654.9,2654.3,3.84275357]
[1727200324340,3.76678,2654.8,2654.4,0.04792579]
[1727200324511,3.76662,2654.9,2654.4,3.81524579]
[1727200325151,3.7668,2654.8,2654.4,0.04792579]
[1727200325352,3.76651,2655.0,2654.4,0.04792579]
[1727200325755,3.76669,2654.9,2654.5,0.5]
[1727200326116,3.76669,2654.9,2654.6,0.04771343]
[1727200327314,0.78705478,2655.4,2655.2,0.8132]
[1727200327630,6.52783424,2655.8,2655.3,3.76604]
[1727200327631,3.76543,2655.8,2655.3,3.76604]
[1727200327960,0.8388668,2656.1,2655.7,3.7654]
[1727200328128,0.0384668,2656.1,2655.7,3.7654]
[1727200328314,0.0384668,2656.1,2655.8,0.04748378]
[1727200328519,0.0384668,2656.1,2655.4,0.07531665]
[1727200328520,3.8033868,2656.1,2655.6,3.76561]
[1727200328715,3.8033868,2656.1,2655.7,0.04749965]
[1727200328915,0.0384668,2656.1,2655.7,0.04749965]
[1727200329359,3.8034068,2656.1,2655.7,0.04749965]
[1727200329557,3.8034068,2656.1,2655.5,3.76574]
[1727200329720,3.8033868,2656.1,2655.8,0.04748378]
[1727200329913,0.0384668,2656.1,2655.6,3.76553]
[1727200330156,0.0384668,2656.1,2655.7,0.93600825]
[1727200330472,0.0384668,2656.1,2655.7,0.86069965]
[1727200330757,0.0384668,2656.1,2655.7,4.62614965]
[1727200331116,0.0384668,2656.1,2655.7,0.86069965]
[1727200331349,3.8033968,2656.1,2655.7,0.86069965]
[1727200331513,0.0384668,2656.1,2655.7,0.04749965]
[1727200331720,0.8004,2655.9,2655.7,0.04749965]
[1727200332062,3.7653,2655.9,2655.8,0.04748378]
[1727200332221,4.56546,2656.0,2655.8,0.04748378]
[1727200332417,8.3306,2656.0,2655.4,3.7659]
[1727200332666,3.76523,2655.9,2655.4,3.7659]
[1727200332870,3.76543,2655.8,2655.2,4.5793]
[1727200333359,3.76543,2655.8,2655.3,3.76603]
[1727200333750,3.76543,2655.8,2655.2,4.5793]
[1727200333921,3.76543,2655.8,2655.3,3.76603]
[1727200335051,3.76529,2655.9,2655.3,3.76603]
[1727200335256,0.0384668,2656.1,2655.6,3.76554]
[1727200335426,0.0384668,2656.1,2655.8,3.76526]
[1727200335623,0.0384668,2656.1,2655.9,3.76517]
[1727200335835,0.0384668,2656.1,2655.8,3.76526]
[1727200336031,0.0384668,2656.1,2655.8,3.76525]
[1727200336725,0.0384668,2656.1,2655.9,0.8132]
[1727200336946,0.0384668,2656.1,2656.0,3.76506]
[1727200337491,0.0384668,2656.1,2656.0,4.57826]
[1727200338465,0.0384668,2656.1,2655.9,3.76519]
[1727200338621,0.0384668,2656.1,2655.7,4.57859]
[1727200339137,0.0384668,2656.1,2655.9,3.76519]
[1727200339322,0.0384668,2656.1,2655.7,8.34393]
[1727200339656,0.0384668,2656.1,2655.8,3.7653]
[1727200339862,0.0384668,2656.1,2655.9,3.7651]
[1727200340291,0.0384668,2656.1,2655.9,7.53019]
[1727200340493,0.0384668,2656.1,2656.0,3.76506]
[1727200340856,0.0384668,2656.1,2655.9,3.76509]
[1727200341699,0.0384668,2656.1,2655.9,7.5302]
[1727200341988,0.0384668,2656.1,2655.9,3.76509]
[1727200342500,0.0384668,2656.1,2656.0,3.76506]
[1727200342681,0.0384668,2656.1,2655.7,4.57857]
[1727200343167,0.0384668,2656.1,2655.7,8.34397]
[1727200343367,0.0384668,2656.1,2655.7,4.57857]
[1727200343905,0.0384668,2656.1,2655.8,0.07529789]
[1727200344052,0.0384668,2656.1,2655.8,3.88656288]
[1727200344253,0.0384668,2656.1,2656.0,3.76506]
[1727200344492,0.0384668,2656.1,2656.0,3.84035138]
[1727200344796,0.0384668,2656.1,2656.0,4.69956464]
[1727200345107,0.0384668,2656.1,2656.0,5.85372167]
[1727200346157,0.0384668,2656.1,2656.0,10.37056203]
[1727200346362,0.0384668,2656.9,2656.8,3.76392]
[1727200346583,0.0384668,2656.9,2656.8,3.80920681]
[1727200347865,0.0384668,2656.9,2655.7,4.223297]
[1727200348057,0.0384668,2656.9,2656.8,0.03881999]
[1727200348058,7.6026468,2656.9,2656.8,0.03881999]
[1727200348298,0.8388668,2656.9,2656.4,3.76437]
[1727200348509,0.8388668,2656.9,2656.4,3.76449]
[1727200348673,0.8388668,2656.9,2656.5,0.03742166]
[1727200348865,0.0384668,2656.9,2656.5,0.03742166]
[1727200349068,3.8023568,2656.9,2656.5,0.03742166]
[1727200349396,4.18256748,2656.9,2656.5,0.03742166]
[1727200349599,3.76403,2656.8,2656.5,0.03742166]
[1727200349799,3.76418,2656.7,2656.1,0.8132]
[1727200350017,5.35926875,2656.7,2656.6,0.03740579]
[1727200350296,3.76422,2656.6,2656.1,0.8132]
[1727200350804,7.52853,2656.6,2656.2,0.03746928]
[1727200350960,3.76422,2656.6,2656.2,0.03746928]
[1727200351166,3.76449,2656.5,2656.2,0.03746928]
[1727200351394,3.76449,2656.4,2656.2,0.03746928]
[1727200351703,3.76439,2656.5,2656.2,0.03746928]
[1727200352273,3.76452,2656.4,2656.2,0.03746928]
[1727200352493,3.76463,2656.3,2656.2,0.03746928]
[1727200353105,3.76463,2656.3,2655.8,0.8132]
[1727200353303,3.76463,2656.3,2656.2,0.03746928]
[1727200353509,3.76452,2656.4,2655.9,3.76519]
[1727200353673,3.76426,2656.6,2656.2,0.03746928]
[1727200354000,3.76426,2656.6,2656.3,0.0374534]
[1727200354001,3.76451,2656.4,2656.3,0.0374534]
[1727200354205,3.76426,2656.6,2655.9,3.76506]
[1727200354375,3.76426,2656.6,2656.3,0.0374534]
[1727200354571,3.76426,2656.6,2656.2,0.84698694]
[1727200354782,3.76426,2656.6,2656.3,0.0374534]
[1727200354999,3.764,2656.8,2656.3,0.0374534]
[1727200355177,3.76429,2656.6,2656.3,0.0374534]
[1727200355493,7.52859,2656.6,2656.3,0.0374534]
[1727200355687,3.76429,2656.6,2656.3,0.0374534]
[1727200356307,4.26370775,2656.8,2656.3,0.0374534]
[1727200356469,3.76396,2656.8,2656.3,3.87734583]
[1727200356806,0.8532668,2656.9,2656.3,0.0374534]
[1727200356807,3.76424,2656.6,2656.3,0.0374534]
[1727200356963,7.52858,2656.6,2656.3,0.0374534]
[1727200357163,3.76401,2656.8,2656.3,0.0374534]
[1727200357360,3.76401,2656.8,2656.3,0.11273579]
[1727200357607,7.52801,2656.8,2656.3,0.11273579]
[1727200357777,3.764,2656.8,2656.3,0.11273579]
[1727200358173,7.52805,2656.8,2656.3,0.11273579]
[1727200358387,3.764,2656.8,2656.3,0.11273579]
[1727200358599,3.76409,2656.7,2656.3,0.11273579]
[1727200358799,3.76409,2656.7,2656.3,0.0374534]
[1727200359040,3.764,2656.8,2656.3,0.0374534]
[1727200359184,7.52801,2656.8,2656.3,0.11273579]
[1727200359389,3.76414,2656.7,2656.3,0.0374534]
[1727200360786,4.60212768,2656.8,2656.3,0.0374534]
[1727200361224,4.60212768,2656.8,2656.3,3.87735583]
[1727200361386,4.60212768,2656.8,2656.3,0.11273583]
[1727200361587,0.0384668,2656.9,2656.4,3.76442]
[1727200361788,0.0384668,2656.9,2656.6,0.7717]
[1727200362025,0.0384668,2656.9,2656.7,0.0752734]
[1727200362395,0.0384668,2656.9,2656.8,0.03752489]
[1727200362722,0.0384668,2656.9,2656.8,4.57314489]
[1727200362899,0.0384668,2656.9,2656.8,5.48212185]
[1727200364032,0.0384668,2656.9,2656.8,5.40685738]
[1727200364402,0.0384668,2656.9,2656.8,0.03752489]
[1727200364789,0.8148,2656.7,2656.2,0.7717]
[1727200364991,3.76429,2656.6,2656.2,0.7717]
[1727200365213,3.76429,2656.6,2655.9,4.53681]
[1727200365528,3.76459,2656.4,2655.9,4.53681]
[1727200365839,3.76499,2656.1,2655.6,3.76554]
[1727200366021,3.76499,2656.1,2655.6,4.53724]
[1727200366702,4.58261761,2656.4,2655.6,0.7717]
[1727200367022,3.76533,2655.9,2655.4,3.76582]
[1727200369697,3.76509,2656.0,2655.4,3.76582]
[1727200370222,3.76499,2656.1,2655.4,3.76582]
[1727200370223,3.76528,2655.9,2655.4,3.76582]
[1727200370745,3.76498,2656.1,2655.4,3.76582]
[1727200370890,3.76508,2656.0,2655.4,4.219572]
[1727200371096,3.76521,2655.9,2655.4,4.219572]
[1727200371296,3.76509,2656.0,2655.4,4.219572]
[1727200371693,3.7652,2655.9,2655.4,4.219572]
[1727200372340,3.7652,2655.9,2655.4,3.76582]
[1727200372833,3.7652,2655.9,2655.3,3.76599]
[1727200373199,3.7652,2655.9,2655.4,3.76584]
[1727200373704,3.76499,2656.1,2655.4,3.76584]
[1727200373705,3.76509,2656.0,2655.5,3.76572]
[1727200373911,3.76499,2656.1,2655.6,3.76554]
[1727200374108,3.76499,2656.1,2655.6,3.80281701]
[1727200374326,9.58956654,2656.3,2655.7,3.76546]
[1727200374695,5.82481654,2656.3,2655.8,0.03724525]
[1727200375033,3.76479,2656.2,2655.7,3.76546]
[1727200375237,3.76493,2656.1,2655.7,3.76546]
[1727200375396,3.76493,2656.1,2655.8,0.03724525]
[1727200375835,3.76493,2656.1,2655.7,3.76546]
[1727200376037,3.76493,2656.1,2655.9,0.03722938]
[1727200376240,3.76493,2656.1,2655.8,0.03724525]
[1727200376397,3.76493,2656.1,2655.7,3.76546]
[1727200376596,3.76493,2656.1,2655.9,0.03722938]
[1727200376897,1.70345462,2656.2,2655.8,3.87787614]
[1727200377118,1.60185478,2656.3,2655.9,3.76519]
[1727200377324,0.78705478,2656.4,2656.0,3.76499]
[1727200377520,4.55156478,2656.4,2655.9,3.80241938]
[1727200377719,0.78705478,2656.4,2656.1,3.80210763]
[1727200377999,4.55129478,2656.6,2656.2,0.03718175]
[1727200378306,0.78705478,2656.5,2656.2,0.03718175]
[1727200379202,0.78705478,2656.4,2656.2,0.03718175]
[1727200380204,0.78705478,2656.4,2656.0,3.76497]
[1727200380432,0.78705478,2656.4,2656.3,0.0369225]
[1727200380632,0.78705478,2656.4,2656.1,3.76488]
[1727200380837,0.78705478,2656.4,2656.3,0.0369225]
[1727200381049,0.78705478,2656.4,2656.2,0.03693837]
[1727200381196,0.78705478,2656.4,2656.3,0.0369225]
[1727200381403,0.78705478,2656.4,2656.0,3.76497]
[1727200381600,0.78705478,2656.4,2656.3,0.0369225]
[1727200381836,0.7891181,2656.4,2656.1,3.84013896]
[1727200382072,0.7891181,2656.4,2656.3,0.8137225]
[1727200382205,0.7891181,2656.6,2656.4,3.76449]
[1727200382405,0.7891181,2656.7,2656.4,3.76449]
[1727200382600,0.7891181,2656.7,2656.5,0.03666199]
[1727200383038,0.7891181,2656.7,2656.5,3.80098199]
[1727200383420,0.7891181,2656.8,2656.5,3.80098199]
[1727200384321,0.7891181,2656.8,2656.5,0.03666199]
[1727200384506,0.7891181,2656.8,2656.5,3.80100199]
[1727200385003,0.7891181,2656.8,2656.5,3.80091199]
[1727200385205,0.8275849,2656.9,2656.6,0.07527633]
[1727200385440,0.0384668,2656.9,2656.6,3.83943633]
[1727200385647,0.0384668,2656.9,2656.7,0.03652806]
[1727200386029,0.8275849,2656.9,2656.7,0.03652806]
[1727200386415,0.0384668,2656.9,2656.7,0.03652806]
[1727200387507,0.0384668,2656.9,2656.7,3.80057806]
[1727200387843,0.0384668,2656.9,2656.8,0.03651219]
[1727200388209,3.14739441,2656.9,2656.8,0.03651219]
[1727200388443,4.82458598,2656.9,2656.5,3.76433]
[1727200388664,7.70038251,2656.9,2656.8,0.03651219]
[1727200388848,3.76399,2656.8,2656.3,4.5414]
[1727200389065,4.55270791,2656.8,2656.3,4.5414]
[1727200389228,3.7641,2656.7,2656.3,0.7768]
[1727200389426,3.10892761,2656.4,2656.0,0.7721]
[1727200389925,7.65997761,2656.4,2655.9,3.76512]
[1727200390238,7.65997761,2656.4,2655.8,4.53742]
[1727200390239,3.76464,2656.3,2655.8,4.53742]
[1727200390617,8.44869552,2656.4,2655.8,4.53742]
[1727200390618,8.44864552,2656.4,2655.8,4.53742]
[1727200391162,8.44864552,2656.4,2655.8,8.30268]
[1727200391321,3.76476,2656.3,2655.8,8.30261]
[1727200391654,3.10892761,2656.2,2655.6,0.7721]
[1727200391956,6.87377761,2656.2,2655.7,3.76541]
[1727200392115,7.66249552,2656.2,2655.7,3.76541]
[1727200392314,0.78871791,2656.2,2655.8,3.76534]
[1727200392713,3.76478,2656.2,2655.7,7.53089]
[1727200392957,4.55343791,2656.3,2655.8,3.76532]
[1727200393253,3.76478,2656.2,2655.7,3.76542]
[1727200393456,2.41945191,2656.3,2655.8,3.76527]
[1727200393656,4.55342791,2656.3,2655.8,3.76527]
[1727200395262,0.78871791,2656.3,2655.8,3.76527]
[1727200395434,0.78871791,2656.4,2655.9,3.76519]
[1727200396164,0.78871791,2656.3,2655.6,4.53763]
[1727200396475,4.55356791,2656.2,2655.6,4.53763]
[1727200397153,0.78871791,2656.2,2655.7,3.7654]
[1727200397765,0.7865,2656.1,2655.6,4.53763]
[1727200397971,0.7865,2656.1,2655.6,3.76556]
[1727200398287,1.57521791,2656.1,2655.6,3.76556]
[1727200398849,0.7865,2656.1,2655.6,3.76556]
[1727200399048,5.34015791,2656.1,2655.6,3.76556]
[1727200399658,3.76542,2655.8,2655.3,0.7721]
[1727200399855,3.76542,2655.8,2655.1,12.14]
[1727200399856,3.10892761,2655.8,2655.1,0.7721]
[1727200400042,3.76577,2655.5,2654.9,4.53868]
[1727200400245,3.76577,2655.5,2654.9,0.7721]
[1727200400492,3.76577,2655.5,2654.9,4.53869]
[1727200400783,0.78871791,2655.6,2655.0,3.76636]
[1727200401155,0.78871791,2655.6,2655.0,3.84168001]
[1727200401666,4.55435791,2655.6,2655.0,0.07532001]
[1727200402220,3.76578,2655.5,2655.0,0.07532001]
[1727200402488,3.76578,2655.5,2654.9,3.76653]
[1727200402844,4.55449791,2655.5,2654.9,3.76651]
[1727200403275,3.76578,2655.5,2654.9,3.76651]
[1727200403656,7.53163,2655.5,2655.0,0.06191971]
[1727200403857,5.20828567,2655.5,2654.9,3.76651]
[1727200404482,3.76606,2655.3,2654.7,3.7668]
[1727200404806,3.10892761,2655.0,2654.5,11.17709]
[1727200404949,3.76716,2654.6,2654.2,0.7721]
[1727200405286,3.76716,2654.6,2654.0,11.17787]
[1727200405287,6.87608761,2654.6,2654.0,3.76787]
[1727200405790,3.10892761,2654.6,2654.1,3.76773]
[1727200406085,0.7865,2654.7,2654.1,3.76773]
[1727200406384,3.76707,2654.6,2653.9,8.308]
[1727200406560,3.76707,2654.6,2653.9,10.23438684]
[1727200406746,3.76707,2654.6,2654.0,3.76788]
[1727200406942,3.10892761,2654.6,2654.0,3.76788]
[1727200407179,4.55352,2654.7,2654.0,3.76788]
[1727200407487,4.55352,2654.7,2654.0,7.53569]
[1727200407643,0.7865,2654.7,2654.2,3.7676]
[1727200407882,0.7865,2654.7,2654.2,7.53506]
[1727200408377,0.7865,2654.7,2654.3,3.8427239]
[1727200408616,4.55314,2654.9,2654.2,7.53504]
[1727200408781,4.55314,2654.9,2654.3,3.76744]
[1727200408994,0.7865,2654.9,2654.3,3.76744]
[1727200409182,0.7865,2654.9,2654.4,3.76728]
[1727200410810,4.55317,2654.9,2654.4,3.76728]
[1727200410985,5.69603576,2654.9,2654.4,3.76728]
[1727200411616,3.76676,2654.8,2654.2,7.53507]
[1727200411819,3.76676,2654.8,2654.2,3.76753]
[1727200412178,5.02392134,2654.8,2654.2,3.76753]
[1727200412379,8.13284895,2654.8,2654.2,3.76753]
[1727200412622,8.13284895,2654.8,2654.0,3.76781]
[1727200412623,3.76707,2654.6,2654.0,3.76781]
[1727200412934,0.7865,2654.5,2654.1,3.76768]
[1727200413216,0.7865,2654.5,2654.0,3.76781]
[1727200413515,0.7865,2654.5,2654.2,3.7676]
[1727200414719,0.7865,2654.5,2654.2,3.76752]
[1727200415340,0.7865,2654.5,2654.0,4.22568768]
[1727200415542,0.7865,2654.5,2654.0,4.22565768]
[1727200415719,0.7865,2654.5,2654.1,3.76767]
[1727200417023,0.7865,2654.5,2654.0,4.22565768]
[1727200417243,4.5537,2654.5,2654.0,4.22565768]
[1727200417553,4.5537,2654.5,2654.0,3.76782]
[1727200418161,0.7865,2654.5,2654.0,3.76782]
[1727200421164,4.55368,2654.5,2654.0,3.76782]
[1727200422145,4.55368,2654.5,2654.0,3.7678]
[1727200422329,0.7865,2654.5,2654.0,7.53561]
[1727200422668,0.7865,2654.5,2654.0,4.60241768]
[1727200422885,0.7865,2654.5,2654.1,3.76763]
[1727200423565,0.7865,2654.5,2654.0,4.60241768]
[1727200424079,4.55375,2654.5,2653.9,3.0]
[1727200424384,4.55375,2654.5,2654.0,3.76788]
[1727200424574,3.7674,2654.4,2653.8,7.5746968]
[1727200424885,3.7674,2654.4,2653.9,3.76802]
[1727200425251,3.76754,2654.3,2653.8,3.8065368]
[1727200425785,3.76734,2654.4,2653.9,3.76803]
[1727200425968,3.76748,2654.3,2653.8,3.8065368]
[1727200426658,3.76733,2654.4,2653.9,3.76802]
[1727200426891,3.7675,2654.3,2653.8,3.8065368]
[1727200427189,4.55381,2654.5,2653.9,3.76795]
[1727200427369,4.55379,2654.5,2654.0,3.76788]
[1727200427691,8.3211,2654.5,2654.0,3.76788]
[1727200428204,3.76735,2654.4,2653.9,3.76803]
[1727200428557,3.76735,2654.4,2653.8,3.8065368]
[1727200428759,3.0,2655.1,2654.3,0.8021]
[1727200428760,0.797,2655.1,2654.3,0.8021]
[1727200429019,3.76592,2655.4,2654.4,1.02081999]
[1727200429163,0.797,2655.5,2655.2,3.76618]
[1727200429367,1.26948124,2655.5,2655.0,3.76646]
[1727200429660,0.797,2655.5,2654.8,3.76666]
[1727200429865,3.76608,2655.3,2654.6,7.53389]
[1727200430058,0.797,2655.2,2654.7,3.76681]
[1727200430273,4.56326,2655.2,2654.7,3.76687]
[1727200430480,3.76568,2655.6,2654.9,3.76653]
[1727200430706,3.76568,2655.6,2655.0,3.84168257]
[1727200430909,3.76577,2655.5,2654.8,7.53333]
[1727200431063,0.797,2655.4,2654.8,7.53333]
[1727200431413,0.797,2655.4,2654.9,3.76659]
[1727200431571,4.56294,2655.4,2654.8,3.76663]
[1727200431902,5.019208,2655.4,2654.8,3.76663]
[1727200432065,5.019208,2655.4,2654.7,3.76689]
[1727200432066,3.76608,2655.3,2654.7,3.76689]
[1727200433609,8.785218,2655.4,2654.8,3.76673]
[1727200434313,8.785198,2655.4,2654.8,3.76673]
[1727200434771,3.76607,2655.3,2654.8,3.76673]
[1727200435207,5.019208,2655.4,2654.8,3.76673]
[1727200435374,5.019208,2655.4,2654.9,3.7666]
[1727200435570,1.253268,2655.4,2654.9,3.7666]
[1727200435770,0.797,2655.7,2655.3,3.76595]
[1727200436083,0.797,2656.1,2655.5,3.76574]
[1727200436282,0.797,2656.1,2655.7,3.76539]
[1727200436806,0.797,2656.4,2655.9,3.76507]
[1727200436995,0.797,2656.4,2655.8,0.07530244]
[1727200437200,0.797,2656.4,2656.1,3.76483]
[1727200437403,1.253122,2656.4,2656.1,3.84012061]
[1727200437703,1.253122,2656.4,2656.1,3.76483]
[1727200437966,1.253122,2656.4,2656.0,3.765]
[1727200438109,0.797,2656.4,2656.1,3.76491]
[1727200440147,0.797,2656.4,2656.0,3.76503]
[1727200440511,0.797,2656.4,2655.9,4.56722]
[1727200440836,7.38,2656.7,2656.2,3.76469]
[1727200440837,11.14406,2656.7,2656.2,3.76469]
[1727200441036,0.797,2656.6,2656.3,3.76463]
[1727200441360,0.797,2656.6,2656.4,7.52887]
[1727200441558,0.8354668,2656.9,2656.4,7.52887]
[1727200441778,0.8354668,2656.9,2656.4,3.7644]
[1727200441933,4.5993068,2656.9,2656.4,3.7644]
[1727200442134,5.51448127,2656.9,2656.4,3.7644]
[1727200444147,1.75064127,2656.9,2656.2,3.76469]
[1727200444373,3.76394,2656.8,2656.3,3.76462]
[1727200444730,7.52795,2656.8,2656.2,3.76469]
[1727200444934,3.76394,2656.8,2656.3,3.76456]
[1727200445673,3.76394,2656.8,2656.2,7.52937]
[1727200445859,3.76408,2656.7,2656.2,3.76468]
[1727200446058,3.76394,2656.8,2656.3,3.76463]
[1727200446675,4.31539813,2656.8,2656.2,3.76468]
[1727200446873,0.8328,2656.5,2656.2,3.76468]
[1727200447293,3.76411,2656.7,2656.2,3.76468]
[1727200447468,4.59691,2656.7,2656.2,3.76468]
[1727200448563,4.59691,2656.7,2655.9,3.91102761]
[1727200448564,0.8328,2656.7,2656.4,3.76448]
[1727200448794,0.0384668,2656.9,2656.4,7.52896]
[1727200448968,0.0384668,2656.9,2656.4,4.53008]
[1727200449152,3.8022568,2656.9,2656.4,4.53008]
[1727200449353,4.64213548,2656.9,2656.4,4.53008]
[1727200450063,3.76408,2656.7,2656.2,4.53027]
[1727200450387,4.59688,2656.7,2656.3,3.76462]
[1727200450794,0.8328,2656.7,2656.3,3.76462]
[1727200450995,0.8328,2656.7,2656.4,3.76449]
[1727200452052,1.29630768,2656.7,2656.3,3.76462]
[1727200452354,0.0384668,2656.9,2656.8,4.52952]
[1727200452580,0.0384668,2656.9,2656.8,8.26126529]
[1727200452784,0.0384668,2656.9,2656.8,8.18600249]
[1727200452989,0.0384668,2656.9,2656.8,9.38100874]
[1727200454200,0.0384668,2656.9,2656.8,11.83345386]
[1727200454958,0.0384668,2656.9,2656.8,12.38345386]
[1727200455199,0.0384668,2656.9,2656.8,12.93100874]
[1727200455991,0.0384668,2656.9,2656.8,12.38345386]
[1727200456553,0.0384668,2656.9,2656.8,12.93100874]
[1727200457602,0.0384668,2656.9,2656.8,8.72452625]
[1727200459576,0.0384668,2656.9,2656.8,0.5]
[1727200459781,0.0384668,2656.9,2656.8,1.2656]
[1727200460021,0.0384668,2656.9,2656.8,5.10478728]
[1727200461389,0.0384668,2656.9,2656.8,5.10478474]
[1727200463413,0.0384668,2656.9,2656.8,0.5]
[1727200463619,0.0384668,2656.9,2656.8,1.0]
[1727200463921,4.26575148,2656.9,2656.8,1.0]
[1727200464696,0.50197148,2656.9,2656.8,1.0]
[1727200464914,4.59644,2657.0,2656.8,1.0]
[1727200464915,4.09841148,2657.0,2656.8,1.0]
[1727200465517,0.33477148,2657.0,2656.8,1.0]
[1727200466786,4.09842148,2657.0,2656.8,1.0]
[1727200467228,0.33477148,2657.0,2656.8,4.76392]
[1727200467522,0.33477148,2657.0,2656.8,1.0]
[1727200467682,0.33477148,2657.0,2656.8,1.5]
[1727200467877,0.33477148,2657.0,2656.8,5.26391]
[1727200468082,0.33477148,2657.0,2656.8,5.26389]
[1727200468490,0.33477148,2657.0,2656.9,3.76378]
[1727200468910,0.33477148,2657.0,2656.8,5.33918095]
[1727200469103,0.33477148,2657.0,2656.8,5.26391]
[1727200469314,0.8328,2657.2,2656.8,5.26391]
[1727200469824,0.8328,2657.2,2656.9,3.76371]
[1727200470182,11.1429,2657.6,2656.9,3.7637]
[1727200470387,0.8328,2657.5,2657.0,4.37399708]
[1727200470693,4.59574,2657.5,2657.0,8.13755708]
[1727200470901,0.8328,2657.5,2657.1,4.5846624]
[1727200471109,0.8328,2657.5,2657.2,3.76335]
[1727200471793,0.8328,2657.5,2657.1,0.8212824]
[1727200472027,0.8328,2657.5,2657.1,3.76342]
[1727200472831,0.8712668,2657.7,2657.3,3.76312]
[1727200472995,0.8712668,2657.7,2657.2,3.83858687]
[1727200473194,0.8712668,2657.7,2657.2,3.76333]
[1727200473391,0.8712668,2657.7,2657.3,3.7632]
[1727200473813,0.0384668,2657.7,2657.5,4.51501]
[1727200474039,0.0384668,2657.7,2657.6,3.76279]
[1727200474531,0.8174668,2657.7,2657.1,0.54734945]
[1727200474839,0.779,2657.4,2656.9,11.17369]
[1727200475142,0.779,2657.4,2656.9,3.76369]
[1727200475319,0.779,2657.4,2656.8,5.76384]
[1727200475521,4.54207,2657.4,2656.8,5.76384]
[1727200475839,4.54207,2657.4,2656.9,3.76371]
[1727200475840,0.779,2657.4,2656.9,3.76371]
[1727200475994,4.5421,2657.4,2656.9,3.76371]
[1727200477724,0.779,2657.4,2656.9,3.7637]
[1727200478091,4.54214,2657.4,2656.9,3.7637]
[1727200479202,0.779,2657.4,2657.0,3.7636]
[1727200479828,3.76297,2657.5,2657.0,4.76633]
[1727200480147,3.76288,2657.6,2657.2,3.76328]
[1727200480148,0.779,2657.6,2657.2,3.76328]
[1727200480440,0.779,2657.6,2657.3,3.76321]
[1727200480601,0.779,2657.6,2657.2,4.53078]
[1727200480802,0.0384668,2657.7,2657.4,3.76305]
[1727200481138,0.0384668,2657.7,2657.2,3.76332]
[1727200481305,3.8011568,2657.7,2657.2,3.76326]
[1727200481739,0.0384668,2657.7,2657.3,3.76312]
[1727200482034,0.0384668,2657.7,2657.2,3.76326]
[1727200482213,3.8011368,2657.7,2657.2,3.76326]
[1727200482898,3.76338,2657.2,2656.8,6.26383]
[1727200483131,3.76308,2657.4,2656.9,3.76371]
[1727200483435,3.76308,2657.4,2657.0,3.76364]
[1727200483794,5.33058791,2657.6,2657.0,3.76364]
[1727200483998,2.78075321,2657.6,2657.0,3.76354]
[1727200484244,3.763,2657.5,2657.0,3.7636]
[1727200484452,7.52602,2657.5,2657.0,3.7636]
[1727200484753,0.779,2657.6,2657.1,7.52687]
[1727200484953,0.779,2657.6,2657.1,3.7634]
[1727200485124,0.779,2657.6,2657.2,3.7633]
[1727200486039,4.58984471,2657.7,2657.2,3.7633]
[1727200486345,4.58989471,2657.7,2657.2,3.7633]
[1727200487563,4.55160791,2657.6,2657.1,3.76348]
[1727200487941,0.78871791,2657.6,2657.4,3.76295]
[1727200488145,0.82718471,2657.7,2657.4,3.76295]
[1727200488637,0.0384668,2657.7,2657.3,3.7632]
[1727200488841,3.76308,2657.4,2656.8,6.2639]
[1727200489152,3.76308,2657.4,2656.9,3.7637]
[1727200489153,4.55179791,2657.4,2656.9,3.7637]
[1727200489673,4.55179791,2657.4,2657.0,3.76359]
[1727200489869,6.11597956,2657.6,2657.4,3.76307]
[1727200489870,0.78871791,2657.6,2657.4,3.76307]
[1727200490078,1.21904897,2657.7,2657.3,0.8095]
[1727200490079,0.82718471,2657.7,2657.3,0.8095]
[1727200490248,0.82718471,2657.7,2656.8,3.3095]
[1727200490249,1.61201791,2657.5,2656.8,3.3095]
[1727200490443,0.78871791,2657.3,2656.9,3.76371]
[1727200490946,0.78871791,2657.3,2656.8,7.40425]
[1727200491339,4.55194791,2657.3,2656.8,7.40425]
[1727200491559,0.78871791,2657.2,2656.9,3.76377]
[1727200491931,0.78871791,2657.3,2656.9,3.76377]
[1727200492455,0.78871791,2657.2,2656.9,3.76377]
[1727200492669,0.78871791,2657.3,2656.9,3.76377]
[1727200492840,0.78871791,2657.2,2656.9,3.76377]
[1727200493048,0.78871791,2657.2,2657.0,3.76363]
[1727200494234,0.78871791,2657.2,2657.1,7.949363]
[1727200494438,0.78871791,2657.6,2657.3,3.76311]
[1727200494675,0.78871791,2657.6,2657.3,7.52626]
[1727200494874,0.78871791,2657.6,2657.3,7.52625]
[1727200495374,1.61201791,2657.5,2657.1,3.76339]
[1727200495683,0.78871791,2657.3,2656.8,2.5]
[1727200495838,0.78871791,2657.2,2656.8,2.5]
[1727200496042,0.8233,2657.1,2656.8,2.5]
[1727200496376,0.78871791,2657.0,2656.8,2.5]
[1727200496740,0.78871791,2656.9,2656.8,2.5]
[1727200496938,1.18058217,2656.9,2656.8,2.5]
[1727200497434,4.94836322,2656.9,2656.8,2.5]
[1727200497638,6.16118956,2656.9,2656.8,2.5]
[1727200498339,4.58708,2656.9,2656.8,2.5]
[1727200498781,6.16118956,2656.9,2656.8,2.5]
[1727200499081,4.58708,2656.9,2656.8,2.5]
[1727200499450,6.16118956,2656.9,2656.8,2.5]
[1727200500486,7.46318234,2656.9,2656.8,2.5]
[1727200501044,10.57711295,2656.9,2656.8,2.5]
[1727200501242,10.96922593,2656.9,2656.8,2.5]
[1727200501803,7.86029832,2656.9,2656.8,2.5]
[1727200502160,7.46804642,2656.9,2656.8,2.5]
[1727200502557,7.86029832,2656.9,2656.8,2.5]
[1727200502779,5.88907278,2656.9,2656.8,2.5]